[Event "Charlotte Spring Classic 2021"]
[Site "Charlotte"]
[Date "2021.03.28"]
[Round "4.6"]
[White "Titus, Andrew"]
[Black "Fishbein, Alexander"]
[Result "0-1"]
[ECO "C81"]
[WhiteElo "2158"]
[BlackElo "2438"]
[Annotator "NA"]
[PlyCount "64"]
[EventDate "2021.03.22"]
[EventType "swiss"]
[EventCountry "USA"]
[SourceTitle "playchess.com"]
[Source "ChessBase"]
[SourceQuality "1"]
[TimeControl "5400+30"]

1. e4 {[%emt 0:00:58]} e5 {[%emt 0:00:27]} 2. Nf3 {[%emt 0:00:07]} Nc6 {[%emt 0:00:10]} 3. Bb5 {[%emt 0:00:19]} a6 {[%emt 0:00:11]} 4. Ba4 {[%emt 0:00:02]} Nf6 {[%emt 0:00:05]} 5. O-O {[%emt 0:01:13]} Nxe4 {[%emt 0:00:04]} 6. d4 {[%emt 0:04:01]} b5 {[%emt 0:00:04]} 7. Bb3 {[%emt 0:00:02]} d5 {[%emt 0:00:05]} 8. dxe5 {[%emt 0:00:13]} Be6 {[%emt 0:00:03]} 9. Nbd2 {[%emt 0:02:30]} Nc5 {[%emt 0:00:05]} 10. Qe2 {[%emt 0:13:31]} Be7 {[%emt 0:09:23]} 11. Rd1 {[%emt 0:09:05]} O-O {[%emt 0:06:00]} 12. h3 {[%emt 0:09:07]} d4 {[%emt 0:09:14]} 13. Bxe6 {[%emt 0:06:26]} Nxe6 {[%emt 0:01:07]} 14. Qe4 {[%emt 0:04:35]} Qd7 {[%emt 0:02:27]} 15. Nb3 {[%emt 0:03:03]} Rad8 {[%emt 0:00:25]} 16. c3 {[%emt 0:09:36]} d3 {[%emt 0:05:48]} 17. Ne1 {[%emt 0:05:06]} Qd5 {[%emt 0:00:53]} 18. Qxd5 {[%emt 0:00:06]} Rxd5 {[%emt 0:00:02]} 19. Rxd3 {[%emt 0:01:39]} Rxd3 {[%emt 0:02:20]} 20. Nxd3 {[%emt 0:00:03]} Rd8 {[%emt 0:00:07]} 21. Nf4 {[%emt 0:03:21]} Rd1+ {[%emt 0:09:15]} 22. Kh2 {[%emt 0:00:01]} Nxe5 {[%emt 0:01:52]} 23. Nxe6 {[%emt 0:04:04]} fxe6 {[%emt 0:00:11]} 24. a4 {[%emt 0:08:15]} Bd6 {[%emt 0:05:02]} 25. g3 {[%emt 0:00:17]} Nf3+ {[%emt 0:02:56]} 26. Kg2 {[%emt 0:00:02]} Ne1+ {[%emt 0:00:10]} 27. Kh2 {[%emt 0:00:09]} Nc2 {[%emt 0:01:48]} 28. Ra2 {[%emt 0:00:08]} b4 {[%emt 0:00:18]} 29. Be3 {[%emt 0:06:08]} Nxe3 {[%emt 0:01:17]} 30. fxe3 {[%emt 0:00:04]} Rd3 {[%emt 0:00:56]} 31. Ra1 {[%emt 0:01:57]} Rxe3 {[%emt 0:01:25]} 32. Nd4 {[%emt 0:00:39]} Rxg3 {[%emt 0:00:40]} 0-1

[Event "Charlotte Spring Classic 2021"]
[Site "Charlotte"]
[Date "2021.03.28"]
[Round "4.8"]
[White "Amburgy, Ryan"]
[Black "Vigorito, David"]
[Result "1/2-1/2"]
[ECO "A40"]
[WhiteElo "2019"]
[BlackElo "2339"]
[Annotator "NA"]
[PlyCount "59"]
[EventDate "2021.03.22"]
[EventType "swiss"]
[EventCountry "USA"]
[SourceTitle "playchess.com"]
[Source "ChessBase"]
[SourceQuality "1"]
[TimeControl "5400+30"]

1. d4 {[%emt 0:00:00]} g6 {[%emt 0:00:31]} 2. Nc3 {[%emt 0:00:00]} Bg7 {[%emt 0:00:07]} 3. Bf4 {[%emt 0:00:00]} d6 {[%emt 0:01:17]} 4. e3 {[%emt 0:00:00]} Nd7 {[%emt 0:01:22]} 5. Nf3 {[%emt 0:03:12]} e5 {[%emt 0:04:26]} 6. Bg5 {[%emt 0:00:11]} Ne7 {[%emt 0:00:38]} 7. dxe5 {[%emt 0:03:48]} dxe5 {[%emt 0:00:29]} 8. Bc4 {[%emt 0:02:09]} f6 {[%emt 0:04:35]} 9. Bh4 {[%emt 0:00:37]} Nf5 {[%emt 0:00:23]} 10. Qe2 {[%emt 0:21:27]} c6 {[%emt 0:09:28]} 11. O-O-O {[%emt 0:02:39]} Qe7 {[%emt 0:00:54]} 12. Ne4 {[%emt 0:06:29]} Nc5 {[%emt 0:11:20]} 13. Nxc5 {[%emt 0:14:20]} Qxc5 {[%emt 0:00:20]} 14. Bg3 {[%emt 0:00:10]} Bd7 {[%emt 0:11:24]} 15. Bf7+ {[%emt 0:03:37]} Ke7 {[%emt 0:00:32]} 16. e4 {[%emt 0:00:36]} Nd6 {[%emt 0:05:18]} 17. Bb3 {[%emt 0:00:09]} Rhd8 {[%emt 0:06:32]} 18. Ne1 {[%emt 0:02:13]} Nb5 {[%emt 0:01:46]} 19. Nd3 {[%emt 0:07:18]} Nd4 {[%emt 0:00:45]} 20. Nxc5 {[%emt 0:00:05]} Nxe2+ {[%emt 0:00:12]} 21. Kb1 {[%emt 0:00:01]} b6 {[%emt 0:05:49]} 22. Rxd7+ {[%emt 0:00:43]} Rxd7 {[%emt 0:00:07]} 23. Nxd7 {[%emt 0:00:00]} Kxd7 {[%emt 0:00:12]} 24. Bc4 {[%emt 0:00:07]} Nxg3 {[%emt 0:05:42]} 25. hxg3 {[%emt 0:00:02]} Rh8 {[%emt 0:00:34]} 26. c3 {[%emt 0:00:33]} Ke7 {[%emt 0:04:42]} 27. Kc2 {[%emt 0:00:12]} h5 {[%emt 0:00:22]} 28. Be2 {[%emt 0:03:28]} Rd8 {[%emt 0:02:39]} 29. g4 {[%emt 0:00:08]} hxg4 {[%emt 0:01:04]} 30. Bxg4 {[%emt 0:00:05]} 1/2-1/2

[Event "Charlotte Spring Classic 2021"]
[Site "Charlotte"]
[Date "2021.03.28"]
[Round "4.10"]
[White "Yanayt, Eugene"]
[Black "Panuganti, Kireet"]
[Result "1/2-1/2"]
[ECO "E06"]
[WhiteElo "2125"]
[BlackElo "1962"]
[Annotator "ChessBase"]
[PlyCount "122"]
[EventDate "2021.03.22"]
[EventType "swiss"]
[EventCountry "USA"]
[SourceTitle "playchess.com"]
[Source "ChessBase"]
[SourceQuality "1"]
[TimeControl "5400+30"]

1. d4 {[%emt 0:08:15]} Nf6 {[%emt 0:00:01]} 2. c4 {[%emt 0:00:07]} e6 {[%emt 0:00:36]} 3. Nf3 {[%emt 0:01:07]} d5 {[%emt 0:00:24]} 4. g3 {[%emt 0:00:14]} Be7 {[%emt 0:00:06]} 5. Bg2 {[%emt 0:00:08]} O-O {[%emt 0:00:05]} 6. O-O {[%emt 0:00:06]} c6 {[%emt 0:00:10]} 7. Nc3 {[%emt 0:00:17]} b6 {[%emt 0:01:36]} 8. Nd2 {[%emt 0:04:46]} Ba6 {[%emt 0:05:31]} 9. b3 {[%emt 0:04:25]} b5 {[%emt 0:05:23]} 10. Bb2 {[%emt 0:03:37]} Nbd7 {[%emt 0:08:34]} 11. Re1 {[%emt 0:06:18]} Rb8 {[%emt 0:04:42]} 12. e4 {[%emt 0:18:12]} bxc4 {[%emt 0:06:54]} 13. e5 {[%emt 0:03:38]} Ne8 {[%emt 0:00:13]} 14. Qc2 {[%emt 0:04:46]} Nb6 {[%emt 0:10:16]} 15. Bf1 {[%emt 0:02:09]} cxb3 {[%emt 0:11:05]} 16. axb3 {[%emt 0:00:03]} Bxf1 {[%emt 0:00:04]} 17. Nxf1 {[%emt 0:00:56]} Qc7 {[%emt 0:01:18]} 18. Ba3 {[%emt 0:04:14]} Rc8 {[%emt 0:17:05]} 19. Nd2 {[%emt 0:06:33]} c5 {[%emt 0:04:21]} 20. Qb2 {[%emt 0:06:28]} Qd7 {[%emt 0:02:55]} 21. Nf3 {[%emt 0:01:10]} c4 {[%emt 0:02:42]} 22. Bxe7 {[%emt 0:03:19]} Qxe7 {[%emt 0:00:03]} 23. bxc4 {[%emt 0:01:12]} Nxc4 {[%emt 0:01:04]} 24. Qa2 {[%emt 0:03:45]} Nxe5 {[%emt 0:05:06]} 25. Nxe5 {[%emt 0:00:50]} Rxc3 {[%emt 0:00:05]} 26. Qxa7 {[%emt 0:00:28]} Qxa7 {[%emt 0:00:19]} 27. Rxa7 {[%emt 0:00:03]} Rc7 {[%emt 0:04:00]} 28. Ra6 {[%emt 0:02:49]} h5 {[%emt 0:02:37]} 29. h3 {[%emt 0:01:10]} Nf6 {[%emt 0:00:20]} 30. g4 {[%emt 0:00:12]} hxg4 {[%emt 0:00:20]} 31. hxg4 {[%emt 0:00:03]} Rfc8 {[%emt 0:00:47]} 32. g5 {[%emt 0:00:48]} Rc1 {[%emt 0:03:44]} 33. Rxc1 {[%emt 0:00:08]} Rxc1+ {[%emt 0:00:02]} 34. Kg2 {[%emt 0:00:08]} Ne4 {[%emt 0:01:07]} 35. g6 {[%emt 0:03:44]} fxg6 {[%emt 0:00:48]} 36. Rxe6 {[%emt 0:00:33]} Rc2 {[%emt 0:00:42]} 37. Re8+ {[%emt 0:01:35]} Kh7 {[%emt 0:00:01]} 38. Ng4 {[%emt 0:00:03]} Rd2 {[%emt 0:00:27]} 39. Kf3 {[%emt 0:00:57]} Rxd4 {[%emt 0:01:29]} 40. Ke3 {[%emt 0:00:11]} Rd1 {[%emt 0:00:54]} 41. Re7 {[%emt 0:00:54]} g5 {[%emt 0:01:43]} 42. f3 {[%emt 0:01:20]} Nd6 {[%emt 0:00:10]} 43. Ke2 {[%emt 0:00:03]} Rd4 {[%emt 0:00:38]} 44. Rd7 {[%emt 0:01:47]} Ne8 {[%emt 0:00:58]} 45. Ke3 {[%emt 0:01:11]} Rd1 {[%emt 0:00:08]} 46. Ke2 {[%emt 0:00:12]} Rd4 {[%emt 0:00:32]} 47. Ke3 {[%emt 0:00:12]} Ra4 {[%emt 0:00:52]} 48. Rxd5 {[%emt 0:00:24]} Kg6 {[%emt 0:00:31]} 49. Ne5+ {[%emt 0:00:39]} Kf6 {[%emt 0:00:27]} 50. Ng4+ {[%emt 0:00:38]} Kg6 {[%emt 0:00:07]} 51. Ne5+ {[%emt 0:00:10]} Kh7 {[%emt 0:00:48]} 52. Ng4 {[%emt 0:01:05]} Nf6 {[%emt 0:00:38]} 53. Rxg5 {[%emt 0:00:23]} Nxg4+ {[%emt 0:00:17]} 54. fxg4 {[%emt 0:00:30]} g6 {[%emt 0:00:40]} 55. Kf3 {[%emt 0:00:08]} Ra3+ {[%emt 0:00:08]} 56. Kf4 {[%emt 0:00:06]} Kh6 {[%emt 0:00:19]} 57. Rb5 {[%emt 0:00:32]} g5+ {[%emt 0:00:36]} 58. Ke4 {[%emt 0:01:15]} Ra4+ {[%emt 0:00:59]} 59. Kf3 {[%emt 0:00:08]} Rf4+ {[%emt 0:00:13]} 60. Kg3 {[%emt 0:00:05]} Rf6 {[%emt 0:00:22]} 61. Rb8 {[%emt 0:01:00]} Ra6 {[%emt 0:00:43]} 1/2-1/2